bitfinex-derivatives/quotes_ETHF0:USTF0_20250130
["timestamp","ask_amount","ask_price","bid_price","bid_amount"]
[1738254472365,0.61201,3268.0,3267.9,0.95274823]
[1738254473876,0.61206,3267.8,3267.7,0.61206]
[1738254475176,0.5371,3267.9,3267.5,5.82120495]
[1738254475380,0.61198,3268.2,3268.1,0.61199]
[1738254475576,1.032,3268.3,3267.9,0.61202]
[1738254475789,0.61201,3268.0,3267.9,0.61202]
[1738254476282,0.61201,3268.0,3267.5,5.82120495]
[1738254476486,0.61201,3268.0,3267.8,0.61204]
[1738254476682,0.61204,3267.9,3267.7,0.61206]
[1738254476982,0.61204,3267.9,3267.5,5.82120495]
[1738254477182,1.52996,3268.2,3267.5,5.82120495]
[1738254477382,1.52996,3268.2,3267.7,0.61206]
[1738254477684,1.032,3268.3,3267.8,2.61340495]
[1738254477875,0.61202,3268.0,3267.9,0.61202]
[1738254478579,1.032,3268.3,3267.8,2.61340495]
[1738254478978,0.61202,3268.0,3267.9,0.61202]
[1738254479176,0.61203,3267.9,3267.8,3.22545495]
[1738254479682,0.61206,3267.8,3267.7,0.61206]
[1738254480074,1.52996,3268.2,3267.5,5.82120495]
[1738254480270,0.61209,3267.7,3267.5,6.43330495]
[1738254480474,0.61209,3267.6,3267.5,6.43330495]
[1738254480682,1.53006,3268.0,3267.5,6.43330495]
[1738254480881,0.61204,3267.9,3267.7,0.61205]
[1738254481081,1.52996,3268.2,3267.7,0.4364546]
[1738254481269,0.61204,3267.9,3267.7,0.61205]
[1738254481470,1.0556,3268.4,3267.8,2.61340495]
[1738254481669,1.0556,3268.4,3268.0,0.612]
[1738254481670,0.61199,3268.2,3268.0,0.612]
[1738254481881,1.032,3268.3,3267.9,0.61202]
[1738254482081,0.612,3268.1,3267.9,0.61202]
[1738254482580,1.032,3268.3,3267.8,3.73734495]
[1738254482581,0.61202,3268.0,3267.8,3.73734495]
[1738254482782,1.032,3268.3,3267.8,3.12530495]
[1738254483079,1.0556,3268.4,3267.9,3.2078]
[1738254483274,0.61196,3268.3,3268.1,0.61198]
[1738254483477,0.5371,3268.4,3268.1,2.61340495]
[1738254483672,1.14904,3268.4,3268.2,0.61196]
[1738254484083,0.5371,3268.4,3268.2,0.61197]
[1738254484286,0.61648242,3268.7,3268.5,0.61191]
[1738254484586,0.61648242,3268.7,3268.5,2.61340495]
[1738254484587,0.6119,3268.6,3268.5,2.61340495]
[1738254484779,0.6119,3268.6,3268.2,1.14106]
[1738254484780,0.61194,3268.4,3268.2,3.75447495]
[1738254485087,0.00459242,3268.7,3268.2,3.14250495]
[1738254485279,0.00459242,3268.7,3268.6,0.6119]
[1738254485476,0.00459242,3268.7,3268.5,3.22531495]
[1738254485678,0.61648242,3268.7,3268.5,3.22531495]
[1738254485879,0.00459242,3268.7,3268.5,2.61340495]
[1738254486081,0.6119,3268.6,3268.3,0.61194]
[1738254486381,0.00459242,3268.7,3268.2,3.14250495]
[1738254486580,0.61193,3268.5,3268.2,3.14250495]
[1738254486784,0.61193,3268.5,3268.2,3.75446495]
[1738254487176,0.00459242,3268.7,3268.2,3.75446495]
[1738254487377,0.00459242,3268.7,3268.2,2.61340495]
[1738254487578,1.53433242,3268.7,3267.9,6.30700495]
[1738254487781,0.5022,3268.6,3267.9,6.30700495]
[1738254487982,0.61197,3268.3,3268.0,0.612]
[1738254488177,0.00459242,3268.7,3267.9,6.81990495]
[1738254488381,0.00459242,3268.7,3268.2,2.61340495]
[1738254488878,0.61196,3268.3,3268.2,2.61340495]
[1738254489787,3.2078,3268.5,3267.9,7.43193495]
[1738254490087,0.612,3268.1,3267.9,6.94613495]
[1738254490282,0.61196,3268.3,3268.0,0.612]
[1738254490688,0.487,3268.4,3268.0,0.612]
[1738254490887,0.61198,3268.2,3268.0,0.612]
[1738254491284,0.487,3268.4,3267.9,6.33410495]
[1738254491592,3.2078,3268.5,3268.4,0.61194]
[1738254491791,0.61647242,3268.7,3268.5,0.61191]
[1738254491983,0.61647242,3268.7,3268.5,3.22531495]
[1738254492286,0.61647242,3268.7,3268.5,2.61340495]
[1738254492287,0.00459242,3268.7,3268.5,2.61340495]
[1738254492491,0.00459242,3268.7,3268.6,1.1088]
[1738254492690,0.00459242,3268.7,3268.6,1.6]
[1738254499591,1.0119,3269.5,3269.4,0.61175]
[1738254499791,1.0119,3269.5,3269.2,5.82120495]
[1738254500187,1.0119,3269.5,3269.2,3.2078]
[1738254500389,1.0119,3269.5,3268.9,2.61340495]
[1738254500390,0.61181,3269.1,3268.9,3.22524495]
[1738254500593,0.61181,3269.1,3269.0,0.00459242]
[1738254501598,1.0119,3269.5,3269.0,0.61641242]
[1738254501798,0.6118,3269.2,3269.0,0.61641242]
[1738254501994,0.6118,3269.2,3269.0,0.00459242]
[1738254502196,0.61181,3269.1,3269.0,0.00459242]
[1738254502502,1.52974,3268.7,3268.1,1.0256]
[1738254502693,3.2078,3268.5,3268.1,0.5369]
[1738254502895,0.61198,3268.2,3268.1,0.5369]
[1738254503290,0.61197,3268.3,3268.1,0.5369]
[1738254503489,0.61198,3268.2,3268.0,3.22541495]
[1738254504191,0.5217,3268.6,3268.0,2.61340495]
[1738254504499,0.61201,3268.0,3267.9,0.00459242]
[1738254506085,1.10391,3268.0,3267.9,0.00459242]
[1738254506289,4.31171,3268.0,3267.9,0.00459242]
[1738254507496,5.34271,3268.0,3267.9,0.00459242]
[1738254507702,4.31171,3268.0,3267.9,0.00459242]
[1738254508001,5.34271,3268.0,3267.9,0.00459242]
[1738254510900,3.6997,3268.0,3267.9,0.61662242]
[1738254511093,1.5384,3268.1,3267.9,0.00459242]
[1738254511398,0.61201,3268.0,3267.9,0.61662242]
[1738254511700,0.61201,3268.0,3267.9,0.00459242]
[1738254513104,0.5074,3268.1,3267.9,0.00459242]
[1738254513399,1.11941,3268.1,3267.9,0.00459242]
[1738254513604,0.61201,3268.0,3267.9,0.00459242]
[1738254520103,0.612,3268.1,3267.9,0.61662242]
[1738254520302,0.612,3268.1,3267.9,0.00459242]
[1738254520606,0.61201,3268.0,3267.9,0.00459242]
[1738254520901,0.5219,3268.3,3267.9,0.61660242]
[1738254520902,0.61199,3268.2,3267.9,0.61660242]
[1738254521107,0.61199,3268.2,3268.0,2.61340495]
[1738254521907,0.61199,3268.1,3268.0,2.61340495]
[1738254523408,0.5219,3268.3,3268.0,2.61340495]
[1738254523603,3.2078,3268.6,3268.0,2.61340495]
[1738254523910,3.2078,3268.6,3268.3,2.61340495]
[1738254524101,3.2078,3268.6,3268.5,0.61192]
[1738254524505,3.2078,3268.6,3268.4,1.13433]
[1738254524705,3.81971,3268.6,3268.4,1.13433]
[1738254525305,3.2078,3268.6,3268.5,0.61192]
[1738254525708,3.8197,3268.6,3268.5,0.61192]
[1738254526007,0.61192,3268.5,3268.4,0.5224]
[1738254526403,3.81971,3268.6,3268.4,1.13433]
[1738254526605,3.2078,3268.6,3268.5,0.61192]
[1738254526811,0.61189,3268.7,3268.5,0.61192]
[1738254527106,0.61189,3268.7,3268.4,3.7302]
[1738254527107,1.0549,3268.9,3268.4,3.7302]
[1738254527505,1.031,3269.3,3268.7,2.61340495]
[1738254527809,0.61179,3269.2,3269.0,3.22522495]
[1738254528006,1.031,3269.3,3268.4,3.7302]
[1738254528208,1.031,3269.3,3268.7,3.22528495]
[1738254528509,0.61184,3269.0,3268.7,3.22528495]
[1738254529212,0.61184,3269.0,3268.7,2.61340495]
[1738254529409,0.61184,3269.0,3268.8,0.61186]
[1738254529709,1.031,3269.3,3268.7,3.22528495]
[1738254529903,0.61185,3268.9,3268.7,3.22528495]
[1738254530204,0.61185,3268.9,3268.7,2.61340495]
[1738254530409,3.2078,3269.0,3268.4,6.34360495]
[1738254530610,0.486,3268.8,3268.4,6.34360495]
[1738254530906,0.61192,3268.6,3268.4,6.34360495]
[1738254531111,0.61192,3268.5,3268.4,5.82120495]
[1738254531308,1.0372,3268.7,3268.3,0.61195]
[1738254531502,0.61191,3268.6,3268.4,2.61340495]
[1738254531904,0.61191,3268.6,3268.4,3.22533495]
[1738254532610,0.61191,3268.6,3268.4,2.61340495]
[1738254533007,0.61192,3268.5,3268.4,2.61340495]
[1738254533208,0.5338,3268.7,3268.4,2.61340495]
[1738254533416,0.61191,3268.6,3268.4,2.61340495]
[1738254534910,0.61191,3268.6,3268.4,3.22533495]
[1738254535106,0.5338,3268.7,3268.4,2.61340495]
[1738254535411,0.61191,3268.6,3268.4,3.22534495]
[1738254535807,0.61191,3268.6,3268.4,3.22533495]
[1738254536706,0.61191,3268.6,3268.4,2.61340495]
[1738254537116,0.61191,3268.6,3268.4,3.22533495]
[1738254537916,0.61191,3268.6,3268.4,2.61340495]
[1738254538421,0.5338,3268.7,3268.4,2.61340495]
[1738254538716,0.61192,3268.5,3268.4,2.61340495]
[1738254539306,0.61191,3268.6,3268.4,2.61340495]
[1738254540521,0.61191,3268.6,3268.4,3.22534495]
[1738254541119,0.61191,3268.6,3268.5,0.5348]
[1738254542217,0.486,3268.8,3268.5,0.5348]
[1738254542523,0.61183,3269.0,3268.8,0.61186]
[1738254543023,1.0683,3269.1,3268.7,2.61340495]
[1738254543221,1.0683,3269.1,3269.0,2.61340495]
[1738254543518,4.2378,3269.4,3269.1,0.6118]
[1738254543709,4.2378,3269.4,3269.1,0.5045]
[1738254543911,0.61178,3269.3,3269.1,1.1163]
[1738254544217,3.2078,3269.4,3269.1,1.11631]
[1738254544424,0.61179,3269.2,3269.1,1.11631]
[1738254544717,0.61179,3269.2,3269.1,0.5045]
[1738254545020,0.61181,3269.1,3269.0,3.22522495]
[1738254545213,3.2078,3269.4,3269.0,3.22522495]
[1738254545413,0.6118,3269.2,3269.0,3.22522495]
[1738254545620,0.61181,3269.1,3269.0,3.22522495]
[1738254545818,0.6118,3269.2,3269.0,3.22522495]
[1738254546322,0.6118,3269.2,3269.1,0.61181]
[1738254546524,0.61181,3269.2,3269.1,0.61181]
[1738254546724,4.1648,3269.6,3269.1,0.61181]
[1738254546919,0.61179,3269.2,3269.1,0.61181]
[1738254547113,0.61179,3269.2,3269.0,3.22521495]
[1738254547315,4.1648,3269.6,3269.0,2.61340495]
[1738254547529,0.61181,3269.1,3269.0,3.22522495]
[1738254547822,0.6118,3269.2,3269.0,3.22522495]
[1738254548022,0.61175,3269.4,3269.0,3.22522495]
[1738254548225,0.61181,3269.1,3269.0,3.22522495]
[1738254549023,4.1648,3269.6,3269.0,2.61340495]
[1738254549223,2.6355,3269.6,3269.0,2.61340495]
[1738254549419,0.6118,3269.2,3269.1,0.6118]
[1738254549613,0.61178,3269.3,3269.0,2.61340495]
[1738254549814,1.0683,3269.6,3269.5,0.61173]
[1738254550020,0.00459242,3269.7,3269.5,0.61173]
[1738254550021,0.00459242,3269.7,3269.6,0.61171]
[1738254550225,38.45353,3272.7,3269.6,0.61171]
[1738254550226,4.73621,3271.5,3269.6,2.58649]
[1738254550425,0.4907,3270.8,3270.4,3.2078]
[1738254550817,0.61147,3271.0,3270.5,1.0572]
[1738254551017,0.61145,3271.0,3270.9,2.61340495]
[1738254551526,0.4907,3271.2,3270.6,2.61799737]
[1738254551527,0.61149,3270.8,3270.6,2.61799737]
[1738254552228,0.61148,3270.9,3270.6,3.22951737]
[1738254552434,0.61146,3271.0,3270.6,3.22951737]
[1738254552634,0.61146,3271.0,3270.9,2.61340495]
[1738254556028,0.4907,3271.2,3270.9,2.61340495]
[1738254556225,0.00459242,3271.3,3271.2,0.61141]
[1738254556534,0.00459242,3271.3,3271.2,4.23261495]
[1738254557332,0.00459242,3271.3,3271.2,3.62120495]
[1738254558333,0.00459242,3271.3,3271.2,2.61340495]
[1738254558334,0.61599242,3271.3,3271.2,2.61340495]
[1738254558535,0.61599242,3271.3,3270.9,2.61340495]
[1738254558536,0.61147,3271.0,3270.9,2.61340495]
[1738254560735,1.029,3271.1,3270.6,3.21239242]
[1738254560930,0.61151,3270.7,3270.6,0.00459242]
[1738254561732,0.5379,3270.9,3270.6,2.61799737]
[1738254562038,0.5379,3270.9,3270.6,5.82579737]
[1738254562039,0.6115,3270.8,3270.6,5.82579737]
[1738254562545,0.61151,3270.7,3270.6,5.82579737]
[1738254562732,0.5379,3270.9,3270.6,5.82579737]
[1738254563035,0.6115,3270.8,3270.6,5.82579737]
[1738254564438,1.14938,3270.9,3270.6,5.82579737]
[1738254564938,0.61149,3270.8,3270.6,5.82579737]
[1738254565532,0.5379,3270.9,3270.6,5.82579737]
[1738254565731,0.6115,3270.8,3270.6,5.82579737]
[1738254566230,0.61151,3270.7,3270.6,2.61799737]
[1738254566432,0.61151,3270.7,3270.6,0.00459242]
[1738254567430,5.0,3270.7,3269.9,2.61340495]
[1738254567630,0.6117,3269.7,3269.6,3.13470495]
[1738254569735,0.6117,3269.7,3269.6,2.61340495]
[1738254570441,4.73679,3270.3,3269.6,2.61340495]
[1738254570639,0.61168,3269.8,3269.6,2.61340495]
[1738254571338,0.61167,3269.9,3269.6,3.22511495]
[1738254571635,0.4937,3270.1,3269.8,3.22506495]
[1738254571838,0.61161,3270.2,3269.9,0.61165]
[1738254572042,3.2078,3270.3,3269.8,2.61340495]
[1738254572734,0.61166,3269.9,3269.8,2.61340495]
[1738254573237,3.2078,3270.3,3269.8,2.61340495]
[1738254573543,1.029,3270.4,3269.8,2.61340495]
[1738254573544,0.61166,3269.9,3269.8,2.61340495]
[1738254574537,0.61165,3270.0,3269.8,2.61340495]
[1738254575232,6.06158648,3271.5,3269.8,2.61340495]
[1738254575437,0.4975,3271.0,3270.4,2.61340495]
[1738254575736,0.6116,3270.2,3270.1,2.61340495]
[1738254576335,0.61159,3270.3,3270.1,2.61340495]
[1738254576640,0.4952,3270.5,3270.1,2.61340495]
[1738254576839,0.61159,3270.3,3270.1,2.61340495]
[1738254577245,0.4975,3270.2,3270.1,2.61340495]
[1738254577548,1.1091,3270.2,3270.1,2.61340495]
[1738254578543,0.4975,3270.2,3270.1,2.61340495]
[1738254578834,1.1091,3270.2,3270.1,2.61340495]
[1738254579241,0.4975,3270.2,3269.9,3.2078]
[1738254579447,0.5391,3270.1,3269.9,3.81945]
[1738254580337,0.5391,3270.1,3270.0,0.61164]
[1738254581046,0.5391,3270.1,3269.9,3.2078]
[1738254581345,1.15073,3270.1,3269.9,3.2078]
[1738254581846,1.15073,3270.1,3269.5,6.35040495]
[1738254581847,0.5391,3270.1,3269.5,6.35040495]
[1738254582146,0.5391,3270.1,3269.8,2.61340495]
[1738254582342,2.17873,3270.1,3269.8,3.22507495]
[1738254582944,0.5391,3270.1,3269.9,0.61166]
[1738254585851,1.15072,3270.1,3269.8,3.22506495]
[1738254586243,0.5391,3270.1,3269.8,2.61340495]
[1738254586449,0.5391,3270.1,3269.9,0.61165]
[1738254586649,1.15073,3270.1,3269.8,3.22507495]
[1738254586847,0.61164,3270.0,3269.8,3.22507495]
[1738254587751,0.5391,3270.1,3269.8,2.61340495]
[1738254587954,1.15073,3270.1,3269.8,3.22507495]
[1738254588158,0.61164,3270.0,3269.8,2.61340495]
[1738254588351,1.15073,3270.1,3269.8,2.61340495]
[1738254588549,1.15073,3270.1,3269.8,3.22507495]
[1738254589858,0.61169,3269.8,3269.5,6.96212495]
[1738254590355,0.61169,3269.8,3269.5,6.35040495]
[1738254590655,0.61169,3269.8,3269.6,0.61171]
[1738254591057,3.7469,3270.1,3269.6,0.61171]
[1738254591257,3.7469,3270.1,3269.5,3.2078]
[1738254591462,3.2078,3269.7,3269.3,0.00459242]
[1738254591654,0.61175,3269.4,3269.3,0.00459242]
[1738254596149,1.028,3269.5,3269.3,0.61635242]
[1738254596356,5.67142495,3270.3,3269.3,0.61635242]
[1738254596357,4.34261,3270.2,3269.9,0.61164]
[1738254596550,3.2078,3270.2,3270.0,0.61163]
[1738254596745,3.2078,3270.2,3269.9,2.42977428]
[1738254596950,3.2078,3270.2,3270.0,0.61163]
[1738254597457,3.2078,3270.2,3269.9,2.42977428]
[1738254597655,3.2078,3270.2,3270.0,0.61163]
[1738254597859,3.81941,3270.2,3270.0,0.61163]
[1738254598559,3.2078,3270.2,3270.0,0.61163]
[1738254598953,3.2078,3270.2,3270.0,1.13063]
[1738254599149,0.61159,3270.3,3270.1,0.61162]
[1738254599954,1.64988,3270.4,3270.2,2.61340495]
[1738254600159,1.0383,3270.4,3270.2,2.61340495]
[1738254600855,3.2078,3270.6,3270.2,2.61340495]
[1738254601056,0.5385,3270.9,3270.5,2.61340495]
[1738254601360,0.5385,3270.9,3270.8,2.61340495]
[1738254601665,0.5385,3270.9,3270.6,0.61152]
[1738254601666,0.6115,3270.8,3270.6,0.61152]
[1738254601962,1.14998,3270.9,3270.7,0.61151]
[1738254602463,1.14998,3270.9,3270.5,2.61340495]
[1738254602664,0.5385,3270.9,3270.7,0.61151]
[1738254603062,3.2078,3271.0,3270.8,3.22488495]
[1738254603368,3.81926,3271.0,3270.8,2.61340495]
[1738254603569,0.61147,3270.9,3270.8,2.61340495]
[1738254603764,0.61155,3270.5,3270.3,3.2078]
[1738254603965,0.5291,3270.8,3270.3,3.2078]
[1738254604165,0.61153,3270.6,3270.3,3.2078]
[1738254604368,0.5291,3270.8,3270.3,3.2078]
[1738254604569,0.5291,3270.8,3270.5,0.86103892]
[1738254604769,0.5291,3270.8,3270.5,2.61340495]
[1738254605158,0.61153,3270.6,3270.5,2.61340495]
[1738254605471,0.5291,3270.8,3270.5,2.61340495]
[1738254605670,0.5291,3270.8,3270.6,0.61152]
[1738254605866,0.61153,3270.6,3270.5,2.61340495]
[1738254606068,0.61153,3270.6,3270.3,3.47942438]
[1738254606265,0.61152,3270.7,3270.4,0.61155]
[1738254606570,0.61152,3270.7,3270.3,2.86784438]
[1738254606571,1.1406,3270.8,3270.5,3.22493495]
[1738254606874,0.5291,3270.8,3270.3,2.86784438]
[1738254607072,3.2078,3270.6,3269.9,2.61340495]
[1738254607261,0.61161,3270.2,3269.9,3.22505495]
[1738254607572,0.61157,3270.4,3270.0,0.61163]
[1738254607774,0.5075,3270.5,3269.9,2.61340495]
[1738254607983,1.11905,3270.5,3270.2,3.22499495]
[1738254608180,3.2078,3270.6,3270.2,2.61340495]
[1738254608379,3.2078,3270.6,3270.5,3.22495495]
[1738254609482,3.2078,3270.6,3270.5,0.61155]
[1738254610984,3.2078,3270.6,3270.5,0.45040219]
[1738254611677,3.2078,3270.6,3270.4,0.61155]
[1738254611981,3.2078,3270.6,3270.5,0.61155]
[1738254612981,3.81934,3270.6,3270.3,0.61157]
[1738254614283,3.81934,3270.6,3270.2,5.82120495]
[1738254614284,3.2078,3270.6,3270.4,0.61156]
[1738254614483,3.2078,3270.6,3270.5,0.61155]
[1738254614982,0.5329,3271.0,3270.5,2.61340495]
[1738254615283,0.5329,3271.0,3270.2,3.2078]
[1738254615284,0.00459242,3271.3,3270.9,2.61340495]
[1738254615579,0.00459242,3271.3,3271.2,2.61340495]
[1738254616282,0.00459242,3271.3,3271.0,0.538]
[1738254616283,0.61599242,3271.3,3271.1,0.61143]
[1738254616677,0.61599242,3271.3,3271.2,0.61142]
[1738254616678,0.00459242,3271.3,3271.2,0.61142]
[1738254616877,0.00459242,3271.3,3271.0,0.538]
[1738254617188,0.00459242,3271.3,3271.1,0.61142]
[1738254617482,0.00459242,3271.3,3271.0,3.7458]
[1738254617686,0.00459242,3271.3,3271.2,3.22482495]
[1738254618279,0.00459242,3271.3,3271.2,2.61340495]
[1738254618479,0.00459242,3271.3,3271.2,3.22482495]
[1738254618781,0.00459242,3271.3,3271.2,2.61340495]
[1738254619184,0.5305,3271.7,3271.2,2.61340495]
[1738254619379,0.5305,3271.7,3271.6,3.22474495]
[1738254619590,0.5305,3271.7,3271.6,2.61340495]
[1738254619977,1.14182,3271.7,3271.5,0.5331]
[1738254620174,0.61136,3271.5,3271.4,3.2078]
[1738254620589,0.61135,3271.6,3271.4,3.2078]
[1738254621889,0.5305,3271.7,3271.4,3.2078]
[1738254622290,1.14183,3271.7,3271.4,3.81917]
[1738254623190,0.5305,3271.7,3271.4,3.81917]
[1738254623490,1.14183,3271.7,3271.4,3.81917]
[1738254623687,0.5305,3271.7,3271.4,3.2078]
[1738254623892,0.00458533,3271.9,3271.8,0.6113]
[1738254624195,0.00458533,3271.9,3271.8,3.2078]
[1738254624383,0.61137,3271.5,3271.3,2.61799028]
[1738254624582,1.0317,3271.4,3271.3,0.00458533]
[1738254624786,1.64308,3271.4,3271.3,0.00458533]
[1738254626293,1.64308,3271.4,3271.3,0.00339733]
[1738254626294,1.0317,3271.4,3271.3,0.00339733]
[1738254626496,0.537,3271.7,3271.3,3.22820228]
[1738254626698,1.0533,3271.8,3271.7,0.61132]
[1738254626898,1.66462,3271.8,3271.6,2.61340495]
[1738254627289,1.0533,3271.8,3271.6,2.61340495]
[1738254627692,1.0533,3271.8,3271.6,3.22474495]
[1738254629693,1.0533,3271.8,3271.6,2.61340495]
[1738254630494,1.66461,3271.8,3271.6,3.22473495]
[1738254630991,1.66461,3271.8,3271.6,2.61340495]
[1738254631392,1.66461,3271.8,3271.6,3.22474495]
[1738254631799,1.0533,3271.8,3271.6,3.22474495]
[1738254632096,0.00458533,3271.9,3271.7,3.2078]
[1738254632301,0.00458533,3271.9,3271.8,0.6113]
[1738254633193,0.00458533,3271.9,3271.8,1.14]
[1738254636195,0.00458533,3271.9,3271.7,4.34501]
[1738254636393,0.6113,3271.8,3271.6,2.61340495]
[1738254636594,0.6113,3271.8,3271.6,3.22474495]
[1738254637003,0.51448533,3271.9,3271.6,2.61340495]
[1738254637205,0.51448533,3271.9,3271.6,3.22473495]
[1738254637395,1.12578533,3271.9,3271.6,3.22473495]
[1738254637897,0.00458533,3271.9,3271.7,0.61131]
[1738254638605,0.00458533,3271.9,3271.6,2.61340495]
[1738254639398,1.53282533,3271.9,3271.3,6.34890228]
[1738254639704,3.2078,3271.6,3271.3,2.61680228]
[1738254639907,0.61138,3271.4,3271.3,2.61680228]
[1738254640202,0.61138,3271.4,3271.3,0.00339733]
[1738254640397,1.0067,3271.5,3271.3,0.00339733]
[1738254640601,1.0067,3271.5,3271.3,2.61680228]
[1738254641000,0.61138,3271.4,3271.3,2.61680228]
[1738254641194,0.61138,3271.4,3271.3,0.00339733]
[1738254641395,0.61153,3270.6,3270.4,2.61340495]
[1738254641591,3.2078,3270.9,3270.4,2.61340495]
[1738254641904,0.61151,3270.7,3270.4,3.22496495]
[1738254642201,0.61151,3270.7,3270.4,1.77738171]
[1738254642400,0.61157,3270.4,3270.3,3.2078]
[1738254642601,1.026,3270.7,3269.5,4.14273495]
[1738254642602,3.2078,3270.5,3269.5,5.82120495]
[1738254642804,0.61169,3269.8,3269.5,2.61340495]
[1738254642999,3.2078,3270.1,3269.7,0.00458533]
[1738254643204,0.5263,3270.0,3269.7,0.00458533]
[1738254643404,0.61167,3269.9,3269.7,0.00458533]
[1738254643604,0.61168,3269.8,3269.7,0.00458533]
[1738254643907,1.13795,3270.0,3269.7,0.00458533]
[1738254644404,0.5263,3270.0,3269.9,0.61166]
[1738254644709,0.00458533,3270.2,3269.9,3.2078]
[1738254645005,0.00458533,3270.2,3269.8,3.22507495]
[1738254645006,0.61162,3270.1,3269.8,3.22507495]
[1738254645206,0.61162,3270.1,3269.8,2.61340495]
[1738254645409,0.00458533,3270.2,3269.8,2.61340495]
[1738254645603,0.61165,3270.0,3269.8,2.61340495]
[1738254645904,0.00458533,3270.2,3269.7,0.00458533]
[1738254646204,0.61168,3269.8,3269.7,0.00458533]
[1738254646406,0.61167,3269.9,3269.7,0.00458533]
[1738254646607,1.10058,3269.8,3269.7,0.00458533]
[1738254648907,0.4889,3269.8,3269.7,0.00458533]
[1738254649509,0.4889,3269.8,3269.7,0.00348109]
[1738254649710,1.10058,3269.8,3269.7,0.00348109]
[1738254651412,0.4889,3269.8,3269.7,0.00348109]
[1738254651607,1.10058,3269.8,3269.7,0.00348109]
[1738254652714,1.026,3270.0,3269.7,0.00348109]
[1738254652914,1.026,3270.0,3269.8,2.61340495]
[1738254653123,1.026,3270.0,3269.8,3.22507495]
[1738254654117,0.5254,3270.1,3269.8,2.61340495]
[1738254654308,1.13703,3270.1,3269.8,3.22507495]
[1738254654503,0.5254,3270.1,3269.8,2.61340495]
[1738254654913,0.61165,3270.0,3269.7,0.61517109]
[1738254655515,0.5254,3270.1,3269.7,0.00348109]
[1738254655710,0.61168,3269.9,3269.7,0.00348109]
[1738254656609,0.61168,3269.8,3269.7,0.00348109]
[1738254657115,3.22508495,3269.8,3269.7,0.00348109]
[1738254657411,0.61181,3269.1,3268.8,0.61185]
[1738254657614,0.61181,3269.1,3268.7,0.5361]
[1738254657615,0.6118,3269.2,3268.9,0.61184]
[1738254657810,0.5292,3269.1,3268.9,0.61184]
[1738254658313,0.5292,3269.1,3269.0,0.61183]
[1738254658814,0.5292,3269.1,3268.9,3.22523495]
[1738254659818,0.5292,3269.1,3269.0,0.61183]
[1738254661211,1.026,3269.5,3269.0,3.2078]
[1738254661518,0.5372,3269.2,3268.9,2.61340495]
[1738254662015,0.5372,3269.2,3269.0,0.61183]
[1738254662316,0.5372,3269.2,3269.1,0.61181]
[1738254662820,0.5372,3269.2,3268.9,2.61340495]
[1738254663019,0.5372,3269.2,3269.0,0.61182]
[1738254663911,0.5372,3269.2,3268.9,2.61340495]
[1738254664312,0.5372,3269.2,3268.7,0.54068533]
[1738254664313,0.61184,3269.0,3268.7,1.15256533]
[1738254664614,0.61187,3268.8,3268.7,0.00458533]
[1738254665918,1.026,3268.8,3268.7,0.00458533]
[1738254666520,3.2078,3269.0,3268.8,0.61185]
[1738254667019,3.2078,3269.0,3268.7,0.00458533]
[1738254667020,3.2078,3269.5,3268.9,2.61340495]
[1738254667319,0.61176,3269.4,3269.1,0.6118]
[1738254667521,3.2078,3269.5,3269.0,0.502]
[1738254667813,1.0019,3269.4,3269.0,0.502]
[1738254668019,0.61178,3269.3,3269.0,1.11382]
[1738254668217,1.0019,3269.4,3269.0,0.502]
[1738254668417,0.4958,3269.4,3269.0,0.502]
[1738254668712,3.2078,3269.5,3269.0,0.502]
[1738254668713,3.2078,3269.5,3269.2,2.61340495]
[1738254668918,3.2078,3269.5,3269.2,3.22518495]
[1738254668919,3.81954,3269.5,3269.2,3.22518495]
[1738254669112,3.81954,3269.5,3269.2,0.61178]
[1738254669316,0.61176,3269.4,3269.1,1.10479]
[1738254669509,3.81954,3269.5,3269.2,0.61178]
[1738254670721,3.2078,3269.5,3269.3,0.61176]
[1738254670918,3.2078,3269.5,3269.1,0.493]
[1738254671222,3.2078,3269.5,3269.4,0.61175]
[1738254671619,3.7334,3270.6,3270.1,0.61162]
[1738254672019,3.7334,3270.6,3270.0,2.61340495]
[1738254672215,3.7334,3270.6,3270.1,0.61162]
[1738254672216,0.61157,3270.4,3270.1,0.61162]
[1738254673213,0.61156,3270.5,3270.1,0.61162]
[1738254673410,3.7334,3270.6,3269.8,4.7861]
[1738254673620,3.2078,3270.1,3269.6,0.6117]
[1738254673824,0.61167,3269.9,3269.6,0.6117]
[1738254674021,0.539,3270.0,3269.4,2.61340495]
[1738254674223,0.00458533,3270.2,3269.7,2.61340495]
[1738254674424,0.00458533,3270.2,3270.1,0.61162]
[1738254675525,0.00458533,3270.2,3269.8,0.527]
[1738254675724,0.00458533,3270.2,3270.1,0.61162]
[1738254676020,0.00458533,3270.2,3269.9,0.61165]
[1738254676217,0.61166,3270.0,3269.7,3.81948]
[1738254676418,0.61168,3269.8,3269.4,0.61174]
[1738254676721,1.0222,3269.7,3269.5,0.61172]
[1738254677115,1.0222,3269.7,3269.4,2.61340495]
[1738254677425,0.5055,3270.0,3269.4,2.61340495]
[1738254677625,0.00458533,3270.2,3269.7,2.61340495]
[1738254677827,0.50528533,3270.2,3270.0,0.61164]
[1738254678526,0.61166,3269.9,3269.6,0.61171]
[1738254680426,1.02168533,3270.2,3269.4,3.64470495]
[1738254680630,0.61173,3269.6,3269.4,0.5342]
[1738254681126,1.10014,3269.5,3269.3,3.2078]
[1738254681520,0.4884,3269.5,3269.3,3.81957]
[1738254682220,0.5348,3269.8,3269.3,3.81957]
[1738254682426,0.5348,3269.8,3269.6,0.6117]
[1738254682724,0.5348,3269.8,3269.7,0.6117]
[1738254683114,0.5348,3269.8,3269.7,3.22510495]
[1738254685430,0.6117,3269.7,3269.4,0.61174]
[1738254685617,0.6117,3269.7,3269.3,3.2078]
[1738254685618,0.61172,3269.7,3269.3,3.2078]
[1738254685823,0.5348,3269.8,3269.7,0.6117]
[1738254686220,1.14648,3269.8,3269.7,0.6117]